Cogmind - Beta 17.1 @@@ ROGUE MODE // 2026.09.03 @ 05:47:31 Player: Cereal Killer Result: Destroyed by H-55 Commando with Gauss Rifle Performance ------------- Evolutions (2) 1000 Regions Visited (8) 1600 Robots Destroyed (47) 235 Value Destroyed (2074) 2074 Prototype IDs (27) 540 Alien Tech Used (0) 0 Bonus (7029) 7029 TOTAL SCORE: 12478 Bonus ------- High Alert Combat Kills 44 Follower Combat Kills 35 Prayed to X0-1V1 5000 Major X0-1V1 Interference 750 Entered Garrisons 400 Used RIF Installer 500 Aligned with FarCom 300 Cogmind --------- Core Integrity 0/650 Matter 232/300 Energy 89/100 System Corruption 17% Temperature Hot (265) Movement Core (50) Location -8/Garrison Parts ------- > --- POWER (1) -------- (None) > --- PROPULSION (2) --- (None) > --- UTILITY (6) ------ Chronowheel > --- WEAPON (2) ------- (None) > --- INVENTORY (6) ---- Structural Scanner Hacking Suite Advanced EMP Blaster Grenade Launcher Chainsword Peak State ------------ > --- POWER ------------ Light Nuclear Core > --- PROPULSION ------- Light Treads Armored Wheel > --- UTILITY ---------- Improved Heat Sink Large Storage Unit Targeting Computer Relay Coupler [NC] Relay Coupler [Grunt] X0-1V1's Piety Tracker > --- WEAPON ----------- Improved Datajack Chainsword > --- INVENTORY -------- Reinforced Ion Engine Small Storage Unit Structural Scanner Propulsion Shielding Hacking Suite Relay Coupler [Swarmer] Chronowheel Heavy Particle Cannon Gauss Rifle Gauss Rifle Advanced EMP Blaster Advanced EMP Blaster Grenade Launcher Chainsword [Rating: 39] Favorites ----------- Power Ion Engine Engine Ion Engine Power Core Light Nuclear Core Propulsion Armored Wheel Treads Light Treads Wheel Armored Wheel Utility Large Storage Unit Device X0-1V1's Piety Tracker Storage Large Storage Unit Processor Targeting Computer Hackware Relay Coupler [NC] Protection Light Armor Plating Weapon EM Shotgun Energy Gun EM Shotgun Energy Cannon Heavy Particle Cannon Ballistic Gun Light Assault Rifle Slashing Weapon Chainsword Special Melee Weapon Improved Datajack Build | -11 -10 -10 -10 -9 -8 -8 -8 -8 ------- Run | Yrd Mat Min Exi Min Mat Gar Mat Gar Slots Evolved 4 | . . . . . 4 . . . Power . | . . . . . . . . . Propulsion . | . . . . . . . . . Utility 4 | . . . . . 4 . . . Weapon . | . . . . . . . . . Parts Attached 47 | 6 13 3 . . . 14 7 4 Power 5 | 1 1 . . . . 2 1 . Engine 4 | 1 1 . . . . 2 . . Core 1 | . . . . . . . 1 . Reactor . | . . . . . . . . . Propulsion 10 | 2 5 1 . . . 2 . . Treads 3 | . 3 . . . . . . . Leg . | . . . . . . . . . Wheel 7 | 2 2 1 . . . 2 . . Hover . | . . . . . . . . . Flight . | . . . . . . . . . Utility 17 | 1 3 1 . . . 5 5 2 Device 9 | . 2 1 . . . 3 2 1 Storage 2 | 1 1 . . . . . . . Processor 1 | . . . . . . 1 . . Hackware 3 | . . . . . . . 2 1 Protection 2 | . . . . . . 1 1 . Artifact . | . . . . . . . . . Weapon 15 | 2 4 1 . . . 5 1 2 Energy Gun 6 | 2 3 1 . . . . . . Energy Cannon 1 | . . . . . . 1 . . Ballistic Gun 5 | . 1 . . . . 2 . 2 Ballistic Cannon . | . . . . . . . . . Launcher . | . . . . . . . . . Special Weapon . | . . . . . . . . . Impact Weapon . | . . . . . . . . . Slashing Weapon 2 | . . . . . . 2 . . Piercing Weapon . | . . . . . . . . . Special Melee Weapon 1 | . . . . . . . 1 . Unidentified Prototypes 1 | . 1 . . . . . . . Parts Lost 29 | . 5 6 . . . 7 1 10 Power 4 | . 1 1 . . . 1 . 1 Propulsion 8 | . 2 1 . . . 2 1 2 Utility 7 | . . 1 . . . 3 . 3 Weapon 10 | . 2 3 . . . 1 . 4 Highest Loss Streak 10 | . 3 5 . . . 6 1 10 To Critical Strikes . | . . . . . . . . . Average Backups 11 | 2 8 11 10 11 12 12 14 13 Power . | . . . . . . . 1 . Propulsion 2 | 1 2 3 3 3 3 2 1 . Utility 3 | . 2 4 4 4 5 5 5 4 Weapon 4 | . 2 4 3 3 3 4 5 6 Tool/Special . | . . . . . . . . . Unused Backups 11 | . 1 . . . . 3 . 7 Power 2 | . . . . . . 1 . 1 Propulsion 1 | . 1 . . . . . . . Utility 4 | . . . . . . 1 . 3 Weapon 4 | . . . . . . 1 . 3 Tool/Special . | . . . . . . . . . Average Slot Usage (%) 86 | . 96 93 71 71 45 71 90 84 Engine 7 | . 13 11 . . . 3 5 . Core 1 | . . . . . . . 3 6 Treads 3 | . 8 . . . . . . 6 Wheel 18 | . 18 27 28 28 18 17 14 6 Device 14 | . 12 13 14 14 9 17 15 15 Storage 11 | . 14 14 14 14 9 9 9 8 Processor 2 | . . . . . . 3 9 7 Hackware 2 | . . . . . . . 5 13 Protection 1 | . . . . . . 3 9 2 Energy Gun 12 | . 18 24 14 14 9 4 . . Ballistic Gun 3 | . 7 . . . . 5 . 1 Slashing Weapon 2 | . . . . . . 2 11 7 Special Melee Weapon 1 | . . . . . . . 6 6 Peak Build Rating 39 | 6 23 24 21 21 22 33 38 39 Average Rating 21 | 4 11 22 20 21 21 28 34 33 On Entrance 20 | . 6 23 20 21 21 22 33 36 Avg Prop Armor Cover (%) 13 | . . . . . . . . 13 Naked Turns 31 | . . . . . . . . 31 Heaviest Build 35 | 14 32 32 22 22 22 35 34 34 Greatest Support 40 | 26 40 24 24 24 24 24 24 20 Greatest Overweight (x) 10 | . 1 1 . . . 2 2 10 Average Overweight (x) . | . . . . . . 1 1 1 Largest Inventory Capacity 16 | 8 15 15 15 15 15 15 15 16 Average Capacity 13 | 7 10 15 15 15 15 15 15 14 Most Carried 15 | 4 13 13 11 12 13 15 15 15 Average Carried 11 | 2 8 11 10 11 12 12 14 13 Final Capacity 15 | 8 15 15 15 15 15 15 15 6 Final Carried 15 | 4 13 10 11 12 13 14 15 5 Class Distribution -------------------- 81% | Mutant 14% | Scavenger-Mutant 3% | Bothacker-Mutant Dominant Class ---------------- Mutant | -10/Materials Mutant | -10/Mines Mutant | -10/Exiles Mutant | -9/Mines Mutant | -8/Materials Mutant | -8/Garrison Scavenger-Mutant | -8/Materials Scavenger-Mutant | -8/Garrison Resources | -11 -10 -10 -10 -9 -8 -8 -8 -8 ----------- Run | Yrd Mat Min Exi Min Mat Gar Mat Gar Matter Collected 1268 | 236 247 38 . 32 . 525 83 107 Remotely . | . . . . . . . . . Salvage Created 2028 | . 743 135 . . . 773 118 259 Parts 103 | . 42 3 . . . 38 7 13 Haulers Intercepted 2 | . 2 . . . . . . . Recyclers Shooed . | . . . . . . . . . Parts Field Recycled . | . . . . . . . . . Retrieved Matter . | . . . . . . . . . Parts Self-Destructed . | . . . . . . . . . Prevented . | . . . . . . . . . Parts Restored . | . . . . . . . . . Kills | -11 -10 -10 -10 -9 -8 -8 -8 -8 ------- Run | Yrd Mat Min Exi Min Mat Gar Mat Gar Combat Hostiles Destroyed 41 | . 12 3 . . . 19 2 5 Melee 8 | . . . . . . 3 2 3 Guns 28 | . 12 2 . . . 12 . 2 Cannons 4 | . . . . . . 4 . . Classes Destroyed 12 | . 5 1 . . . 5 . 1 Worker 1 | . 1 . . . . . . . Hauler 2 | . 2 . . . . . . . Mechanic 1 | . 1 . . . . . . . Watcher 2 | . 2 . . . . . . . Swarmer 6 | . . . . . . 6 . . Grunt 24 | . 12 2 . . . 8 2 . Brawler 1 | . . . . . . 1 . . Duelist 1 | . . . . . . 1 . . Sentry 2 | . . . . . . 1 . 1 Demolisher 1 | . . 1 . . . . . . Hunter 4 | . . . . . . 2 . 2 Programmer 2 | . . . . . . . . 2 Best Kill Streak 5 | . 4 1 . . . 5 1 3 Combat Bots Only 5 | . 4 2 . . . 5 1 3 Max Kills in Single Turn 1 | . 1 1 . . . 1 1 1 Gunslinging . | . . . . . . . . . Exploded . | . . . . . . . . . Melee 1 | . . . . . . 1 1 1 Uniques/NPCs Destroyed . | . . . . . . . . . Combat | -11 -10 -10 -10 -9 -8 -8 -8 -8 -------- Run | Yrd Mat Min Exi Min Mat Gar Mat Gar Hostile Shots Fired 407 | . 93 21 . . . 144 7 142 Missed 118 | . 25 3 . . . 49 3 38 Hits 289 | . 68 18 . . . 95 4 104 Melee 1 | . . . . . . 1 . . Projectile 288 | . 68 18 . . . 94 4 104 AOE 7 | . . 7 . . . . . . Critical Strikes 6 | . 2 . . . . 3 . 1 Part Disruptions 1 | . . . . . . . . 1 Damage Taken 3708 | . 786 451 . . . 1069 62 1340 Core 1012 | . 142 107 . . . 265 15 483 Absorbed by Shields 20 | . . . . . . . . 20 Core Remaining (%) 58 | 100 . . . 17 . . . . Volleys Fired 160 | . 79 12 . . . 51 . 18 Largest 2 | . 2 2 . . . 2 . 2 Hottest 115 | . 90 90 . . . 115 . 103 Shots Fired 292 | . 140 23 . . . 95 . 34 Gun 273 | . 140 23 . . . 83 . 27 Cannon 19 | . . . . . . 12 . 7 Launcher . | . . . . . . . . . Special . | . . . . . . . . . Kinetic 170 | . 68 2 . . . 73 . 27 Thermal 91 | . 59 3 . . . 22 . 7 Explosive . | . . . . . . . . . Electromagnetic 31 | . 13 18 . . . . . . Robot Hit Streak 11 | . 9 8 . . . 11 . 6 Robot Miss Streak 4 | . 4 2 . . . 4 . 4 Penetration Max 1 | . . . . . . 1 . . Secondary Targets 2 | . . 1 . . . 1 . . Max Gunslinging Chain 1 | . . 1 . . . 1 . . Shots Hit Robots 203 | . 93 19 . . . 55 9 27 Core Hits 88 | . 38 7 . . . 31 2 10 Critical Kills . | . . . . . . . . . Critical Parts Destroyed 3 | . . . . . . 2 . 1 Critical Strikes 6 | . 2 . . . . 2 . 2 Burn 2 | . 2 . . . . . . . Destroy 3 | . . . . . . 2 . 1 Sever 1 | . . . . . . . . 1 Melee Attacks 44 | . . . . . . 5 17 22 Impact . | . . . . . . . . . Slashing 30 | . . . . . . 5 10 15 Piercing . | . . . . . . . . . Sneak Attacks 7 | . . . . . . . 6 1 Combat Hostiles . | . . . . . . . . . Follow-up Attacks . | . . . . . . . . . Damage Inflicted 3095 | . 984 258 . . . 1158 137 558 Guns 2406 | . 959 258 . . . 906 . 283 Cannons 200 | . . . . . . 150 . 50 Explosions 24 | . 24 . . . . . . . Melee 464 | . . . . . . 102 137 225 Ramming 1 | . 1 . . . . . . . Kinetic 1544 | . 383 15 . . . 863 . 283 Thermal 740 | . 474 23 . . . 193 . 50 Explosive . | . . . . . . . . . Electromagnetic 346 | . 126 220 . . . . . . Impact . | . . . . . . . . . Slashing 464 | . . . . . . 102 137 225 Piercing . | . . . . . . . . . Highest Corruption 17 | . 1 1 . . . 5 14 17 Average Corruption 6 | . 1 1 . . . 5 13 14 Corruption Purged . | . . . . . . . . . Corruption Blocked . | . . . . . . . . . Effects 44 | . 6 1 . . . 4 14 19 Message Errors 7 | . . . . . . 2 3 2 Matter Fused 10 | . 3 . . . . . 4 3 Heat Flow Errors 1 | . . . . . . . . 1 Energy Discharges 6 | . 1 . . . . 1 1 3 Parts Rejected 1 | . 1 . . . . . . . Parts Fused 1 | . . . . . . . 1 . Data Loss (minor) 10 | . . . . . . . 4 6 Data Loss (major) 2 | . . 1 . . . . . 1 Misfires 2 | . 1 . . . . 1 . . Alerts 1 | . . . . . . . . 1 Misdirections 2 | . . . . . . . 1 1 Weapon Failures 1 | . . . . . . . . 1 Overload Shots . | . . . . . . . . . Overflow Damage 5 | . . . . . . . . 5 Projectiles . | . . . . . . . . . Explosions . | . . . . . . . . . Melee 5 | . . . . . . . . 5 Knockbacks 1 | . 1 . . . . . . . Impact 1 | . 1 . . . . . . . Kinetic . | . . . . . . . . . Secondary . | . . . . . . . . . Self-Inflicted Damage . | . . . . . . . . . Shots . | . . . . . . . . . Rammed 1 | . 1 . . . . . . . Targets Rammed 1 | . 1 . . . . . . . Kicked . | . . . . . . . . . Crushed . | . . . . . . . . . Highest Temperature 337 | . 337 250 . . . 22 . 265 Average Temperature 87 | . 99 105 . . . 7 . 67 Received Heat Transfer 960 | . 480 99 . . . 216 36 129 Siege Activations . | . . . . . . . . . Martial Activations . | . . . . . . . . . Shielding Activations . | . . . . . . . . . Robots Disrupted . | . . . . . . . . . Combat Hostiles . | . . . . . . . . . Robots Corrupted 1 | . . 1 . . . . . . Combat Hostiles 1 | . . 1 . . . . . . Parts Fried 3 | . 1 2 . . . . . . Impact Corruptions . | . . . . . . . . . Robots Melted . | . . . . . . . . . Combat Hostiles . | . . . . . . . . . Parts Melted 3 | . 2 . . . . 1 . . Heat Transferred 1821 | . 1388 50 . . . 309 . 74 Parts Sabotaged . | . . . . . . . . . Parts Stolen . | . . . . . . . . . Parts Stripped . | . . . . . . . . . Power Chain Reactions 1 | . 1 . . . . . . . Alert | -11 -10 -10 -10 -9 -8 -8 -8 -8 ------- Run | Yrd Mat Min Exi Min Mat Gar Mat Gar Maximum Alert Level 2 | . . . . . . 2 1 . Low Security (%) 89 | 100 100 100 . 100 100 49 98 100 Level 1 6 | . . . . . . 29 1 . Level 2 4 | . . . . . . 21 . . Level 3 . | . . . . . . . . . Level 4 . | . . . . . . . . . Level 5 . | . . . . . . . . . High Security . | . . . . . . . . . Max Security . | . . . . . . . . . Peak Influence 498 | . 151 45 . . . 498 242 129 Initial 242 | . . . . . . . 242 . Average 73 | . 41 6 . . . 218 40 59 Influence Increases 1293 | . 367 110 . . 4 568 45 199 Destroy 0b10 Robot/C 840 | . 240 60 . . . 380 40 120 Destroy 0b10 Robot/NC 30 | . 30 . . . . . . . Destroy Leader 108 | . 58 20 . . . 20 . 10 Allied During Kill 1 | . . . . . . . . 1 Successful Hack 41 | . 4 . . . 4 28 5 . Anti-Garrison Action 100 | . . . . . . 50 . 50 Destroy Structure 38 | . 5 . . . . 15 . 18 Lose Combat Pursuer 135 | . 30 30 . . . 75 . . Influence Decreases 1214 | . 366 96 15 . 4 70 543 120 Entered New Map 272 | . . 1 15 . . . 256 . Time Decay 541 | . 325 85 . . 4 . 127 . Lost Part 231 | . 41 10 . . . 70 10 100 Lost Ally 20 | . . . . . . . . 20 Purge Threat 150 | . . . . . . . 150 . Squads Dispatched 3 | . 3 . . . . . . . Investigation 1 | . 1 . . . . . . . Extermination . | . . . . . . . . . Reinforcement 2 | . 2 . . . . . . . Assault . | . . . . . . . . . Garrison . | . . . . . . . . . Intercept . | . . . . . . . . . Searches Triggered . | . . . . . . . . . Construction Impeded . | . . . . . . . . . Haulers Reinforced . | . . . . . . . . . Active Scanning Responses . | . . . . . . . . . Cargo Convoy Interrupts . | . . . . . . . . . Stealth | -11 -10 -10 -10 -9 -8 -8 -8 -8 --------- Run | Yrd Mat Min Exi Min Mat Gar Mat Gar Distress Signals 5 | . 1 . . . . 2 2 . Communications Jammed . | . . . . . . . . . Distress Signals . | . . . . . . . . . Times Spotted 84 | . 29 6 . . 1 28 9 11 Peak Tracking Total 9 | . 6 2 . . 1 9 4 7 Tactical Retreats 7 | . 2 2 . . . 3 . . Traps | -11 -10 -10 -10 -9 -8 -8 -8 -8 ------- Run | Yrd Mat Min Exi Min Mat Gar Mat Gar Traps Triggered 5 | . 2 . . . . 1 . 2 Indirectly . | . . . . . . . . . Trap Hack Attempts . | . . . . . . . . . Triggered . | . . . . . . . . . Disarmed . | . . . . . . . . . Reprogrammed 2 | . 2 . . . . . . . Reused . | . . . . . . . . . Traps Extracted . | . . . . . . . . . Installed . | . . . . . . . . . Triggered . | . . . . . . . . . Machines | -11 -10 -10 -10 -9 -8 -8 -8 -8 ---------- Run | Yrd Mat Min Exi Min Mat Gar Mat Gar Machines Disabled 2 | . . . . . . 1 . 1 Max in Single Turn 1 | . . . . . . 1 . 1 Garrison Relay 2 | . . . . . . 1 . 1 Machines Repaired . | . . . . . . . . . Machines Dismantled . | . . . . . . . . . Machines Sabotaged . | . . . . . . . . . Overloaded Fab Kills . | . . . . . . . . . Hacking | -11 -10 -10 -10 -9 -8 -8 -8 -8 --------- Run | Yrd Mat Min Exi Min Mat Gar Mat Gar Machines Accessed 14 | . 3 . 2 . 1 3 3 2 Terminals 10 | . 3 . . . . 3 2 2 Fabricators . | . . . . . . . . . Repair Stations . | . . . . . . . . . Recycling Units . | . . . . . . . . . Scanalyzers . | . . . . . . . . . Garrison Access 2 | . . . . . 1 . 1 . Total Hacks 23 | . 6 . 2 . 1 5 6 3 Successful 12 | . 4 . 2 . 1 2 3 . Failed 11 | . 2 . . . . 3 3 3 Catastrophic 4 | . . . . . . 2 1 1 Database Lockouts . | . . . . . . . . . Manual 3 | . 1 . 1 . . . 1 . Terminals 19 | . 6 . . . . 5 5 3 Fabricators . | . . . . . . . . . Repair Stations . | . . . . . . . . . Recycling Units . | . . . . . . . . . Scanalyzers . | . . . . . . . . . Garrison Access 2 | . . . . . 1 . 1 . Terminal Hacks 10 | . 4 . 2 . . 2 2 . Record 1 | . . . 1 . . . . . Prototype ID Bank 1 | . 1 . . . . . . . Emergency Access Points 1 | . . . . . . 1 . . Terminal Index 1 | . . . . . . . 1 . Unreport Threat 1 | . . . . . . . 1 . Locate Traps 2 | . 2 . . . . . . . Reprogram Traps 1 | . 1 . . . . . . . Garrison Registry 1 | . . . . . . 1 . . Proto ID Catalog 1 | . . . 1 . . . . . Fabricator Hacks . | . . . . . . . . . Repair Station Hacks . | . . . . . . . . . Recycling Unit Hacks . | . . . . . . . . . Scanalyzer . | . . . . . . . . . Garrison Access Hacks 2 | . . . . . 1 . 1 . Unlock Access 2 | . . . . . 1 . 1 . Unauthorized Hacks . | . . . . . . . . . Terminals . | . . . . . . . . . Fabricators . | . . . . . . . . . Repair Stations . | . . . . . . . . . Recycling Units . | . . . . . . . . . Scanalyzers . | . . . . . . . . . Garrison Access . | . . . . . . . . . Data Cores Recovered . | . . . . . . . . . Used . | . . . . . . . . . Hacking Detections 9 | . 1 . . . 1 3 2 2 Full Trace Events . | . . . . . . . . . Feedback Events . | . . . . . . . . . Feedback Blocked . | . . . . . . . . . Robot Schematics Acquired . | . . . . . . . . . Robots Built . | . . . . . . . . . Authchips . | . . . . . . . . . Time . | . . . . . . . . . Total Robot Build Rating . | . . . . . . . . . Part Schematics Acquired . | . . . . . . . . . Parts Built . | . . . . . . . . . Authchips . | . . . . . . . . . Time . | . . . . . . . . . Total Part Build Rating . | . . . . . . . . . Part Studies Acquired . | . . . . . . . . . Parts Repaired . | . . . . . . . . . Time . | . . . . . . . . . Parts Recycled . | . . . . . . . . . Recycled Matter . | . . . . . . . . . Retrieved Matter . | . . . . . . . . . Retrieved Components . | . . . . . . . . . Parts Scanalyzed . | . . . . . . . . . Part Schematics Acquired . | . . . . . . . . . Parts Damaged . | . . . . . . . . . Bothacking | -11 -10 -10 -10 -9 -8 -8 -8 -8 ------------ Run | Yrd Mat Min Exi Min Mat Gar Mat Gar Used RIF Installer 1 | . . . . . . 1 . . Robots Hacked 7 | . . . . . . . 5 2 Non-combat 5 | . . . . . . . 5 . Combat 2 | . . . . . . . . 2 Robot Hacks Applied 8 | . . . . . . . 6 2 parse_system 1 | . . . . . . . 1 . no_distress 1 | . . . . . . . 1 . drop_inventory 1 | . . . . . . . 1 . locate_stockpiles 1 | . . . . . . . 1 . find_station 1 | . . . . . . . 1 . map_route 1 | . . . . . . . 1 . go_dormant 1 | . . . . . . . . 1 formatsys_high 1 | . . . . . . . . 1 Relay Couplers Released 8 | . . . . . . 5 . 3 Machine Destruction 8 | . . . . . . 5 . 3 Attached 3 | . . . . . . . 2 1 Fabnet Peak Effective % . | . . . . . . . . . Robots Rewired . | . . . . . . . . . Allies Hacked . | . . . . . . . . . Hacks Repelled . | . . . . . . . . . Allies | -11 -10 -10 -10 -9 -8 -8 -8 -8 -------- Run | Yrd Mat Min Exi Min Mat Gar Mat Gar Total Allies 1 | . . . . . . . . 1 Largest Group 1 | . . . . . . . . 1 Highest-Rated Group 16 | . . . . . . . . 16 Highest-Rated Ally 16 | . . . . . . . . 16 Total Orders . | . . . . . . . . . Ally Attacks 4 | . . . . . . . . 4 Total Damage 58 | . . . . . . . . 58 Kills 1 | . . . . . . . . 1 Allies Corrupted . | . . . . . . . . . Allies Melted . | . . . . . . . . . X0-1V1 Amusement Gains 141 | . 11 70 . . . 10 . 50 Average Entertainment 33 | . 11 49 . 33 14 16 24 57 Good Acts 7 | . . 2 . 1 . 1 1 2 Bad Acts 9 | . . 3 . . . 4 1 1 Intel | -11 -10 -10 -10 -9 -8 -8 -8 -8 ------- Run | Yrd Mat Min Exi Min Mat Gar Mat Gar Active Infowar (turns) 1 | . . . . . . 1 . . Structural 1 | . . . . . . 1 . . Robot Analysis Total . | . . . . . . . . . Derelict Logs Recovered 1 | . . 1 . . . . . . Drone Launches . | . . . . . . . . . Drone Recoveries . | . . . . . . . . . Exploration | -11 -10 -10 -10 -9 -8 -8 -8 -8 ------------- Run | Yrd Mat Min Exi Min Mat Gar Mat Gar Turns Passed 3310 | 57 1147 482 201 50 20 647 308 398 Spaces Moved 2184 | 50 616 420 223 54 21 362 231 207 Core 53 | 8 . . . . . . . 45 Treads 147 | . 146 . . . . . . 1 Legs . | . . . . . . . . . Wheels 1984 | 42 470 420 223 54 21 362 231 161 Hover . | . . . . . . . . . Flight . | . . . . . . . . . Fastest Speed 50 | 50 90 90 90 90 90 105 105 50 Average Speed 104 | 83 110 101 90 90 90 105 109 111 Slowest Speed 550 | 90 160 105 90 90 90 120 120 550 Overloaded Moves . | . . . . . . . . . Propulsion Burnouts . | . . . . . . . . . Robots Hopped . | . . . . . . . . . Potential Cave-ins . | . . . . . . . . . Cave-ins Triggered . | . . . . . . . . . Exploration Rate (%) 40 | 4 96 74 60 12 9 39 30 36 Regions Visited 8 Branch Regions 3 Pre-discovered Areas 3 | . . 1 1 1 . . . . Known Exits Taken 2 | . . . . . 1 . 1 . Unknown Exits Taken 5 | 1 1 1 1 1 . . . . Scrap Searched 1 | . . . . 1 . . . . Spaces Dug 3 | . . . . . . . . 3 Terrain Destroyed 8 | . 2 . . . . 3 . 3 Melee 3 | . . . . . . . . 3 Projectile 3 | . . . . . . 3 . . AOE 2 | . 2 . . . . . . . Terrain Rammed . | . . . . . . . . . Walls Destroyed . | . . . . . . . . . Machines Disabled . | . . . . . . . . . Actions | -11 -10 -10 -10 -9 -8 -8 -8 -8 --------- Run | Yrd Mat Min Exi Min Mat Gar Mat Gar Total 2886 | 65 955 452 223 55 21 528 270 317 Wait 354 | . 219 16 . 1 . 69 9 40 Move 2175 | 49 615 419 222 53 20 360 230 207 Hop . | . . . . . . . . . Pick Up 54 | 10 20 1 1 1 1 14 4 2 Fast Attach 4 | . . . . . . 3 1 . Attach 34 | 6 8 4 . . . 10 1 5 Detach 1 | . . . . . . 1 . . Swap 17 | . 9 . . . . 2 5 1 Drop 14 | . 4 . . . . 5 3 2 Fire 160 | . 79 12 . . . 51 . 18 Melee 44 | . . . . . . 5 17 22 Ram . | . . . . . . . . . Kick . | . . . . . . . . . Crush 1 | . 1 . . . . . . . Escape Stasis 28 | . . . . . . 8 . 20 Rewire . | . . . . . . . . . Trap . | . . . . . . . . . Miscellaneous . | . . . . . . . . . Route ------- -11/Scrapyard -10/Materials (discovered 5 exits: [*Mat x3] / [*Min] / [*Sub]) -10/Mines (discovered 2 exits: *Exi / [*Sub]) -10/Exiles -9/Mines -8/Materials -8/Garrison (discovered 3 exits: *Mat x3) -8/Materials -8/Garrison History --------- Turn | Location | Event 25 | -11/Scrapyard | Discovered new exit (range 16) 58 | -11/Scrapyard | Entered Materials 237 | -10/Materials | Discovered new exit (range 15) 317 | -10/Materials | Build established: Mutant 380 | -10/Materials | Discovered new exit (range 14) 491 | -10/Materials | Discovered new exit (range 16) 522 | -10/Materials | Core integrity fell below 50% 564 | -10/Materials | Lost 3 parts (1p2n) 829 | -10/Materials | Discovered new exit (range 14) 970 | -10/Materials | Discovered new exit (range 6) 1098 | -10/Materials | Prayed at D.C.S.S. Altar Unit 1205 | -10/Materials | Entered Mines 1252 | -10/Mines | Assembled infested the area 1257 | -10/Mines | Assisted by a Guerilla fighting off Assembled 1311 | -10/Mines | Discovered new exit (range 8) 1322 | -10/Mines | X0-1V1 activates XOMVISION 1398 | -10/Mines | Learned location of Zion (-7) 1591 | -10/Mines | Core integrity fell below 20% 1631 | -10/Mines | Lost 5 parts (1p1u3w) 1684 | -10/Mines | Deemed a non-threat by the Exiles lab entrance 1684 | -10/Mines | X0-1V1 caused items to flee you 1684 | -10/Mines | Discovered new exit (range 5) 1687 | -10/Mines | Entered Exiles 1710 | -10/Exiles | Met 8R-AWN 1724 | -10/Exiles | Met EX-HEX 1753 | -10/Exiles | Met EX-BIN 1764 | -10/Exiles | Aligned with FarCom system 1765 | -10/Exiles | Given EX-Vault access code 1788 | -10/Exiles | Opened EX-Vault 1796 | -10/Exiles | Found Chronowheel 1816 | -10/Exiles | Warned to stay clear of 0b10 Research branches 1843 | -10/Exiles | Met EX-DEC 1880 | -10/Exiles | Discovered new exit (range 11) 1888 | -10/Exiles | Left Exiles lab with Chronowheel 1888 | -10/Exiles | Entered Mines 1889 | -9/Mines | Learned location of Storage (-7) 1906 | -9/Mines | Core integrity restored by X0-1V1 (+42) 1916 | -9/Mines | Discovered new exit (range 12) 1938 | -9/Mines | Entered Materials 1938 | -8/Materials | Evolved 4 slots: Utility x4 1957 | -8/Materials | Identified exit to Garrison 1958 | -8/Materials | Entered Garrison 2020 | -8/Garrison | Core integrity permanently improved by X0-1V1 (+200) 2068 | -8/Garrison | Installed Relay Interface Framework 2080 | -8/Garrison | Garrison Relay disabled 2103 | -8/Garrison | Discovered new exit (range 60) 2103 | -8/Garrison | Discovered new exit (range 35) 2103 | -8/Garrison | Discovered new exit (range 84) 2122 | -8/Garrison | Triggered checkpoint 2263 | -8/Garrison | X0-1V1 sent you into danger 2264 | -8/Garrison | Triggered checkpoint 2343 | -8/Garrison | Lost 6 parts (1p2n2u1w) 2435 | -8/Garrison | Triggered checkpoint 2514 | -8/Garrison | Triggered checkpoint 2605 | -8/Garrison | Entered Materials 2609 | -8/Materials | X0-1V1 activates XOMVISION 2618 | -8/Materials | System corruption reached 10% 2912 | -8/Materials | Identified exit to Garrison 2913 | -8/Materials | Entered Garrison 2972 | -8/Garrison | Build established: Scavenger-Mutant 3013 | -8/Garrison | Triggered checkpoint 3030 | -8/Garrison | Garrison Relay disabled 3139 | -8/Garrison | Triggered checkpoint 3148 | -8/Garrison | Inventory capacity permanently improved by X0-1V1 (+1; -100 max core) 3224 | -8/Garrison | Core integrity fell below 50% 3275 | -8/Garrison | Core integrity fell below 20% 3278 | -8/Garrison | Released all parts (3) 3299 | -8/Garrison | Triggered checkpoint 3309 | -8/Garrison | Lost 10 parts (1p2n3u4w) 3309 | -8/Garrison | Activated Chronowheel 3311 | -8/Garrison | Destroyed by H-55 Commando with Gauss Rifle Last Messages --------------- 03299_ Field strength at 82. 03300_ Field strength at 76. 03301_ Field strength at 70. 03302_ Field strength at 64. 03303_ Field strength at 54. X0-1V1's Piety Tracker suddenly appears amidst shimmering waves of color. 03304_ Field strength at 48. 03305_ W>,P#9=CLVGY VLH,LKU80#O9XHXBCUR2AL1 03305_ Field strength at 42. 03306_ Field strength at 29. 03307_ Field strength at 23. 03308_ Field strength at 17. 03309_ Spacetime feels off. 03310_ X0-1V1 wants to heat up the action around here (+296 heat). 03310_ Field strength at 2. 03311_ Stasis field depleted. 03311_ Slug penetrates Wall. 03311_ X0-1V1 chortles! Map ----- +----------------------------------------------------+ | ?????????????????????????????????????????????????? | | ?????????????????????????????????????????????????? | | ?????????????????????????????????????????????????? | | ?????????????????????????????????????????????????? | | ?????????????????????????????????????????????????? | | ?????????????????????????????????????????????????? | | ???????????????###???????????????????????????????? | | ????######????? ???????????????????????????????? | | ??""""""""""??? ???????????????????????????????? | | ?#"""!!!!"""??? #???????????????????????????????? | | ?#"" ""??? #???????????????????????????????? | | ?#"! !"#?? #???????????????????????????????? | | ?#"! !"#?# #???????????????????????????????? | | ?#"! !"#?# #???????????????????????????????? | | ??"! !"#?# #???????????????????????????????? | | ???! !"#?# #????????#??????????????????????? | | ????? !"#?# #???????? ??????????????????????? | | ?????? ""??# #???????# #?????????????????????? | | ???????# #???# #???????# #?????????????????????? | | ???##### ##### #???????# #?????????????????????? | | ???# #???????# ###???????????????????? | | ???# #???????# #???????????????????? | | ???# ######### #???????# #???????????????????? | | ???# #???????# #???????# ????????????????????? | | ???# #???????# #########Y#?????????????????????? | | ???# #Yh? ; ! @ #?????????????????????? | | #### #???????# #####T#####?????????????????????? | | ## #???????# #???###?????????????????????????? | | ## ##??????# #???????????????????????????????? | | #??????# #???????????????????????????????? | | #???????????????????????????????? | | #???????????????????????????????? | | ## ###########???????????????????????????????? | | ## #?????????????????????????????????????????? | | "?????????????????????????????????????????? | | "?????????????????????????????????????????? | | "?????????????????????????????????????????? | | "?????????????????????????????????????????? | | ## #?????????????????????????????????????????? | | ## #?????????????????????????????????????????? | | ? ?????????????????????????????????????????? | | ? ?????????????????????????????????????????? | | ?????????????????????????????????????????? | | ""#?####?????????????????????????????????????????? | | ?????????????????????????????????????????????????? | | ?????????????????????????????????????????????????? | | ?????????????????????????????????????????????????? | | ?????????????????????????????????????????????????? | | ?????????????????????????????????????????????????? | | ?????????????????????????????????????????????????? | +----------------------------------------------------+ Best States ------------- Heat Dissipation 55 Energy Generation 14 Energy Capacity 250 Matter Stores 300 Matter Capacity 300 Sight Range 16 Terrain Scan Density 10 Armor Coverage 150 Propulsion Shielding 33 Evasion (%) 50 Targeting Accuracy 5 Recoil Reduction 2 Relay Coupler Types 2 Relay Coupler Value 51 Item Schematics ----------------- None Robot Schematics ------------------ None Fabricated ------------ Nothing Repaired ---------- Nothing Studied --------- None Alien Tech Used ----------------- None Achievements -------------- None Challenges ------------ None Game ------ Seed OmegaRelayCharger Manual? 0 Play Time 00:29:42 Cumulative 352.4 hours Start 2026.09.03 @ 05:08:08 End 2026.09.03 @ 05:47:31 Sessions 1 Manual Loads 0 Difficulty Rogue Special Mode None Game No. 268 Rogue 259 Adventurer 9 Explorer 0 Win Type - Total 5 Types 4/0/0/1/0/0/0/0/0/0 Lore% 87 Gallery% 73 Achievement% 54 Wizard Run 0 Options --------- Layout 1 ASCII 0 Keyboard 0 Movement Numpad Keybinds 0 Fullscreen 1 Font 24/Smallcaps Map View 50x35 Zoom Use 0% Tactical HUD 1 Map Filters NONE Filters NONE Steam 1 RUN: 80be7270-3e12-44dc-8350-fe9b55c79d8f